fUSD/lending_fUSD_20260208
["ID","MTS","AMOUNT","RATE_DAILY","PERIOD"]
[404798302,1770575442430,-150.0,0.00043407,30]
[404798303,1770575442439,-150.0,0.00043455,30]
[404798304,1770575442450,-150.0,0.00043455,30]
[404798305,1770575442460,-150.0,0.00043499,30]
[404798306,1770575442469,-150.0,0.00043499,30]
[404798307,1770575442478,-200.461407,0.000435,25]
[404798308,1770575442488,-300.51862815,0.00043521,5]
[404798309,1770575442497,-251.3634381,0.00043521,10]
[404798310,1770575442508,-150.0,0.00043564,2]
[404798311,1770575442517,-150.0,0.00043564,2]
[404798312,1770575442529,-4671.45366529,0.00043564,2]
[404798313,1770575442541,-3445.92703626,0.00043564,2]
[404798314,1770575442552,-150.0,0.00043564,2]
[404798315,1770575442564,-13413.59595424,0.00043564,2]
[404798316,1770575442574,-150.0,0.00043572,30]
[404798317,1770575442584,-150.0,0.00043604,30]
[404798318,1770575442593,-150.0,0.00043604,30]
[404798319,1770575442603,-25000.0,0.00043633,15]
[404798320,1770575442613,-25000.0,0.00043641,15]
[404798321,1770575442623,-25000.0,0.0004365,15]
[404798322,1770575442632,-150.0,0.00043656,30]
[404798323,1770575442642,-1055.36341632,0.00043656,30]
[404798324,1770575442651,-150.0,0.00043656,30]
[404798325,1770575442662,-3240.89898856,0.00043656,30]
[404798326,1770575442671,-150.0,0.00043656,30]
[404798327,1770575442681,-748.98175906,0.00043656,30]
[404798328,1770575442691,-25000.0,0.00043659,15]
[404798329,1770575442709,-265.06963232,0.00043666,8]
[404798330,1770575442721,-25000.0,0.00043668,15]
[404798331,1770575442732,-25000.0,0.00043677,15]
[404798332,1770575442742,-150.0,0.00043683,30]
[404798333,1770575442754,-25000.0,0.00043685,15]
[404798334,1770575442765,-844.17346933,0.0004369,120]
[404798335,1770575442774,-25000.0,0.00043694,15]
[404798336,1770575442786,-256.44961567,0.000437,120]
[404798337,1770575442798,-25000.0,0.00043703,15]
[404798338,1770575442809,-150.0,0.00043709,30]
[404798339,1770575442818,-25000.0,0.00043712,15]
[404798340,1770575442828,-150.0,0.00043716,30]
[404798341,1770575442838,-150.0,0.00043716,30]
[404798342,1770575442848,-25000.0,0.00043721,15]
[404798343,1770575442857,-25000.0,0.00043729,15]
[404798344,1770575442867,-162.38812646,0.00043732,120]
[404798345,1770575442876,-155.40614317,0.00043735,15]
[404798346,1770575442885,-655.64818807,0.00043735,15]
[404798347,1770575442895,-25000.0,0.00043738,15]
[404798348,1770575442904,-25000.0,0.00043747,15]
[404798349,1770575442913,-296460.38853709,0.0004375,120]
[404798350,1770575443098,-5912.7,0.0004375,120]
[404798351,1770575443110,-1857.2051787,0.0004375,120]
[404798352,1770575443130,-489.23389195,0.0004375,120]
[404798353,1770575443141,-81999.99999978,0.0004375,120]
[404798354,1770575443154,-348.93660504,0.0004375,120]
[404798355,1770575443165,-781.9940052,0.0004375,120]
[404798356,1770575443284,-2219.08332884,0.00026141,2]
[404798357,1770575443295,-3030.275,0.00026141,2]
[404798358,1770575443306,-4000.0,0.00026141,2]
[404798359,1770575443338,-36637.22454327,0.00026141,2]
[404798360,1770575443352,-73289.33936362,0.00026141,2]
[404798361,1770575443363,-30073.43609311,0.00026141,2]
[404798362,1770575443375,-360.11324534,0.00026141,2]
[404798363,1770575443389,-10626.20974626,0.00026141,2]
[404798364,1770575443402,-7642.11571789,0.00026141,2]
[404798365,1770575443413,-447.1571751,0.00026141,2]
[404798366,1770575443423,-33806.8389977,0.00026141,2]
[404798368,1770575444219,-709.01,0.00026141,2]
[404798391,1770575445872,-1055.6272,0.00026141,2]
[404798392,1770575445925,-4186.4872037,0.00026141,2]
[404798393,1770575446035,-6109.21244901,0.00026141,2]
[404798397,1770575509577,351.0,0.00035616,30]
[404798399,1770575739041,-688.237,0.00025618,10]
[404798400,1770575834554,250.0,0.00015,2]
[404798401,1770575835666,300.0,0.00017,2]
[404798432,1770576631901,-550.589,0.00025422,10]
[404798434,1770576631911,-332.91168728,0.00025422,2]
[404798436,1770576631922,-250.0,0.00025422,2]
[404798438,1770576631931,-15.28198227,0.00025422,10]
[404798439,1770576631954,-174.43101773,0.00025422,10]
[404798440,1770576631963,-250.0,0.00025549,2]
[404798441,1770576631973,-1200.0,0.00025739,2]
[404798442,1770576631983,-655.64818812,0.0002574,2]
[404798443,1770576631992,-1991.81652551,0.0002574,2]
[404798444,1770576632001,-173.85227834,0.0002574,2]
[404798445,1770576632011,-548.21266264,0.0002574,2]
[404798446,1770576632020,-564.99886292,0.00025741,2]
[404798447,1770576632030,-150.0,0.00025812,2]
[404798448,1770576632039,-150.0,0.00025812,2]
[404798449,1770576632048,-554.87567158,0.0002583,2]
[404798450,1770576632057,-554.87567158,0.00025831,2]
[404798451,1770576632067,-151.0,0.00025837,7]
[404798452,1770576632079,-500.0,0.00025839,2]
[404798453,1770576632088,-544.4233127,0.00025839,2]
[404798454,1770576632098,-500.0,0.00025839,2]
[404798455,1770576632108,-500.0,0.00025839,2]
[404798456,1770576632117,-500.0,0.00025839,2]
[404798457,1770576632127,-500.0,0.00025839,2]
[404798458,1770576632138,-500.0,0.00025839,2]
[404798459,1770576632147,-500.0,0.00025839,2]
[404798460,1770576632156,-500.0,0.00025839,2]
[404798461,1770576632166,-612.41984636,0.00025839,2]
[404798463,1770576632176,-500.0,0.00025839,2]
[404798465,1770576632185,-500.0,0.00025839,2]
[404798467,1770576632195,-500.0,0.00025839,2]
[404798469,1770576632206,-500.0,0.00025839,2]
[404798471,1770576632215,-500.0,0.00025839,2]
[404798472,1770576632224,-500.0,0.00025839,2]
[404798473,1770576632234,-500.0,0.00025839,2]
[404798474,1770576632243,-500.0,0.00025839,2]
[404798475,1770576632253,-500.0,0.00025839,2]
[404798476,1770576632263,-500.0,0.00025839,2]
[404798477,1770576632275,-500.0,0.00025839,2]
[404798478,1770576632286,-500.0,0.00025839,2]
[404798479,1770576632295,-500.0,0.00025839,2]
[404798480,1770576632306,-500.0,0.00025839,2]
[404798481,1770576632319,-500.0,0.00025839,2]
[404798482,1770576632328,-500.0,0.00025839,2]
[404798483,1770576632338,-500.0,0.00025839,2]
[404798484,1770576632348,-500.0,0.00025839,2]
[404798485,1770576632360,-500.0,0.00025839,2]
[404798486,1770576632370,-500.0,0.00025839,2]
[404798487,1770576632380,-500.0,0.00025839,2]
[404798488,1770576632390,-500.0,0.00025839,2]
[404798489,1770576632400,-500.0,0.00025839,2]
[404798490,1770576632410,-163.31397138,0.00025839,2]
[404798491,1770576632423,-336.68602862,0.00025839,2]
[404798492,1770576632433,-500.0,0.00025839,2]
[404798493,1770576632442,-500.0,0.00025839,2]
[404798494,1770576632452,-500.0,0.00025839,2]
[404798495,1770576632462,-500.0,0.00025839,2]
[404798496,1770576632471,-500.0,0.00025839,2]
[404798497,1770576632480,-500.0,0.00025839,2]
[404798498,1770576632490,-500.0,0.00025839,2]
[404798499,1770576632500,-500.0,0.00025839,2]
[404798500,1770576632510,-500.0,0.00025839,2]
[404798501,1770576632520,-500.0,0.00025839,2]
[404798502,1770576632529,-500.0,0.00025839,2]
[404798503,1770576632538,-500.0,0.00025839,2]
[404798504,1770576632547,-500.0,0.00025839,2]
[404798505,1770576632557,-500.0,0.00025839,2]
[404798506,1770576632566,-500.0,0.00025839,2]
[404798507,1770576632575,-500.0,0.00025839,2]
[404798508,1770576632584,-500.0,0.00025839,2]
[404798509,1770576632593,-500.0,0.00025839,2]
[404798510,1770576632603,-500.0,0.00025839,2]
[404798511,1770576632612,-500.0,0.00025839,2]
[404798512,1770576632621,-500.0,0.00025839,2]
[404798513,1770576632630,-500.0,0.00025839,2]
[404798514,1770576632639,-500.0,0.00025839,2]
[404798515,1770576632648,-500.0,0.00025839,2]
[404798516,1770576632658,-500.0,0.00025839,2]
[404798517,1770576632676,-500.0,0.00025839,2]
[404798518,1770576632687,-500.0,0.00025839,2]
[404798519,1770576632696,-500.0,0.00025839,2]
[404798520,1770576632705,-500.0,0.00025839,2]
[404798521,1770576632715,-500.0,0.00025839,2]
[404798522,1770576632724,-500.0,0.00025839,2]
[404798523,1770576632734,-500.0,0.00025839,2]
[404798524,1770576632744,-500.0,0.00025839,2]
[404798525,1770576632753,-500.0,0.00025839,2]
[404798526,1770576632762,-500.0,0.00025839,2]
[404798527,1770576632772,-500.0,0.00025839,2]
[404798528,1770576632782,-500.0,0.00025839,2]
[404798529,1770576632791,-500.0,0.00025839,2]
[404798530,1770576632800,-500.0,0.00025839,2]
[404798531,1770576632810,-500.0,0.00025839,2]
[404798532,1770576632819,-500.0,0.00025839,2]
[404798533,1770576632829,-500.0,0.00025839,2]
[404798534,1770576632839,-500.0,0.00025839,2]
[404798535,1770576632849,-500.0,0.00025839,2]
[404798536,1770576632859,-500.0,0.00025839,2]
[404798537,1770576632868,-500.0,0.00025839,2]
[404798538,1770576632878,-500.0,0.00025839,2]
[404798539,1770576632888,-500.0,0.00025839,2]
[404798540,1770576632898,-500.0,0.00025839,2]
[404798541,1770576632908,-500.0,0.00025839,2]
[404798542,1770576632917,-500.0,0.00025839,2]
[404798543,1770576632927,-500.0,0.00025839,2]
[404798544,1770576632936,-500.0,0.00025839,2]
[404798545,1770576632945,-500.0,0.00025839,2]
[404798546,1770576632954,-345.60426276,0.00025839,2]
[404798547,1770576632963,-500.0,0.00025839,2]
[404798548,1770576632973,-500.0,0.00025839,2]
[404798549,1770576632983,-500.0,0.00025839,2]
[404798550,1770576632993,-500.0,0.00025839,2]
[404798551,1770576633002,-245.0,0.00025839,2]
[404798552,1770576633012,-150.0,0.00025839,2]
[404798553,1770576633021,-3500000.0,0.0002584,2]
[404798554,1770576633031,-52953.60092516,0.00025841,2]
[404798555,1770576633044,-384.88090561,0.00025841,2]
[404798556,1770576633054,-1112.11785737,0.00025841,2]
[404798557,1770576633065,-1428.32,0.00025841,2]
[404798558,1770576633085,-5848.23006169,0.00025841,2]
[404798562,1770576637962,-2053.64958982,0.00025841,2]
[404798563,1770576637974,-4211.56716035,0.00025841,2]
[404798564,1770576637983,-2117.9728,0.00025841,2]
[404798565,1770576637993,-150.0,0.00025867,2]
[404798566,1770576638003,-8882.12,0.000259,2]
[404798567,1770576638013,-150.0,0.00025922,2]
[404798568,1770576638022,-177.43847801,0.0002594,2]
[404798569,1770576638032,-681.61838258,0.00025941,2]
[404798570,1770576638041,-9999.99,0.00025941,2]
[404798571,1770576638051,-1202.13,0.00025941,2]
[404798572,1770576638060,-200.0,0.00025976,2]
[404798573,1770576638070,-151.0,0.00026025,2]
[404798574,1770576638079,-151.0,0.00026025,2]
[404798575,1770576638090,-151.0,0.00026025,2]
[404798576,1770576638100,-151.0,0.00026025,2]
[404798579,1770576638295,-151.0,0.00026025,2]
[404798580,1770576638321,-151.0,0.00026025,2]
[404798581,1770576638331,-151.0,0.00026025,2]
[404798582,1770576638341,-151.0,0.00026025,2]
[404798583,1770576638350,-151.0,0.00026025,2]
[404798584,1770576638362,-151.0,0.00026025,2]
[404798585,1770576638372,-151.0,0.00026025,2]
[404798586,1770576638382,-151.0,0.00026025,2]
[404798587,1770576638393,-151.0,0.00026025,2]
[404798588,1770576638403,-151.0,0.00026025,2]
[404798589,1770576638414,-151.0,0.00026025,2]
[404798590,1770576638424,-151.0,0.00026025,2]
[404798591,1770576638434,-151.0,0.00026025,2]
[404798592,1770576638443,-151.0,0.00026025,2]
[404798593,1770576638453,-267.57957864,0.00026025,2]
[404798594,1770576638464,-1298.2069,0.00026041,2]
[404798595,1770576638473,-8911.7183,0.00026041,2]
[404798596,1770576638483,-301.0,0.0002611,2]
[404798597,1770576638493,-1000.0,0.00026141,2]
[404798598,1770576638503,-170.9,0.000262,7]
[404798599,1770576638512,-332.91168728,0.00026435,2]
[404798600,1770576638522,-150.0,0.00027369,2]
[404798601,1770576638531,-332.91168728,0.00027448,2]
[404798602,1770576638541,-500.0,0.00027473,5]
[404798603,1770576638551,-500.0,0.00027473,5]
[404798604,1770576638560,-500.0,0.00027473,5]
[404798605,1770576638570,-500.0,0.00027473,3]
[404798606,1770576638579,-500.0,0.00027473,5]
[404798607,1770576638589,-500.0,0.00027473,5]
[404798608,1770576638600,-525.12123328,0.00027473,5]
[404798609,1770576638610,-655.64818807,0.00027739,2]
[404798610,1770576638620,-250.0,0.00027964,2]
[404798611,1770576638630,-1680.0,0.00027988,2]
[404798612,1770576638640,-1000.0,0.00028021,5]
[404798613,1770576638650,-1000.0,0.00028021,5]
[404798614,1770576638660,-1000.0,0.00028021,5]
[404798615,1770576638669,-157.61677908,0.00028021,3]
[404798616,1770576638678,-509.61964186,0.00028021,5]
[404798617,1770576638688,-1000.0,0.00028021,5]
[404798618,1770576638697,-500.0,0.00028037,2]
[404798619,1770576638707,-1991.81652551,0.00028371,2]
[404798620,1770576638716,-6930.97143759,0.00028375,2]
[404798621,1770576638727,-332.91168728,0.00028461,2]
[404798622,1770576638737,-1000.0,0.00028568,5]
[404798623,1770576638747,-500.0,0.00028568,5]
[404798624,1770576638755,-1500.0,0.00028568,5]
[404798625,1770576638765,-500.0,0.00028568,5]
[404798626,1770576638774,-2008.70815555,0.00029116,5]
[404798627,1770576638783,-332.91168728,0.00029473,2]
[404798628,1770576638792,-8882.12,0.000295,2]
[404798629,1770576638801,-655.64818807,0.00029739,2]
[404798630,1770576638810,-152.4,0.0003,2]
[404798631,1770576638819,-152.4,0.0003,2]
[404798632,1770576638828,-152.4,0.0003,2]
[404798633,1770576638837,-152.4,0.0003,2]
[404798634,1770576638847,-152.4,0.0003,2]
[404798635,1770576638857,-152.4,0.0003,2]
[404798636,1770576638866,-152.4,0.0003,2]
[404798637,1770576638875,-152.4,0.0003,2]
[404798638,1770576638885,-152.4,0.0003,2]
[404798639,1770576638898,-152.4,0.0003,2]
[404798640,1770576638908,-152.4,0.0003,2]
[404798641,1770576638918,-152.4,0.0003,2]
[404798642,1770576638927,-152.4,0.0003,2]
[404798643,1770576638936,-152.4,0.0003,2]
[404798644,1770576638945,-152.4,0.0003,2]
[404798645,1770576638955,-152.4,0.0003,2]
[404798646,1770576638964,-152.4,0.0003,2]
[404798647,1770576638973,-152.4,0.0003,2]
[404798648,1770576638983,-152.4,0.0003,2]
[404798649,1770576638992,-152.4,0.0003,2]
[404798650,1770576639001,-152.4,0.0003,2]
[404798651,1770576639011,-152.4,0.0003,2]
[404798652,1770576639021,-152.4,0.0003,2]
[404798653,1770576639034,-152.4,0.0003,2]
[404798654,1770576639044,-152.4,0.0003,2]
[404798655,1770576639052,-152.4,0.0003,2]
[404798656,1770576639063,-152.4,0.0003,2]
[404798657,1770576639072,-152.4,0.0003,2]
[404798658,1770576639083,-152.4,0.0003,2]
[404798659,1770576639095,-152.4,0.0003,2]
[404798660,1770576639105,-152.4,0.0003,2]
[404798661,1770576639114,-152.4,0.0003,2]
[404798662,1770576639123,-152.4,0.0003,2]
[404798663,1770576639132,-152.4,0.0003,2]
[404798664,1770576639142,-152.4,0.0003,2]
[404798665,1770576639151,-152.4,0.0003,2]
[404798666,1770576639160,-152.4,0.0003,2]
[404798667,1770576639170,-152.4,0.0003,2]
[404798668,1770576639179,-152.4,0.0003,2]
[404798669,1770576639188,-152.4,0.0003,2]
[404798670,1770576639198,-152.4,0.0003,2]
[404798671,1770576639207,-152.4,0.0003,2]
[404798672,1770576639216,-152.4,0.0003,2]
[404798673,1770576639226,-2351.0,0.00030433,2]
[404798674,1770576639236,-332.91168728,0.00030486,2]
[404798675,1770576639245,-681.61838257,0.00030492,2]
[404798676,1770576639255,-1991.81652551,0.00031003,2]
[404798677,1770576639264,-767.72,0.0003129,2]
[404798678,1770576639274,-332.91168728,0.00031499,2]
[404798679,1770576639284,-655.64818807,0.00031738,2]
[404798680,1770576639293,-332.91168728,0.00032512,2]
[404798681,1770576639304,-509.0,0.00032616,2]
[404798682,1770576639315,-155.53073825,0.00032712,2]
[404798683,1770576639325,-2828.55,0.00032773,2]
[404798684,1770576639334,-1000.0,0.00032773,20]
[404798685,1770576639344,-157.94,0.00032773,2]
[404798686,1770576639355,-767.72,0.00032855,2]
[404798687,1770576639364,-1000.0,0.00033081,2]
[404798688,1770576639374,-2037.0,0.00033092,3]
[404798689,1770576639384,-332.91168728,0.00033525,2]
[404798690,1770576639393,-1991.81652551,0.00033634,2]
[404798691,1770576639403,-8882.12,0.000337,2]
[404798692,1770576639412,-655.64818807,0.00033738,2]
[404798693,1770576639422,-767.72,0.00034419,2]
[404798694,1770576639433,-332.91168728,0.00034538,2]
[404798695,1770576639442,-250.0,0.00034777,2]
[404798696,1770576639452,-150.0,0.00034904,2]
[404798697,1770576639462,-548.21266263,0.0003495,2]
[404798698,1770576639471,-564.99886292,0.0003495,2]
[404798699,1770576639481,-1331.1502044,0.00035039,2]
[404798700,1770576639491,-681.61838257,0.00035043,7]
[404798701,1770576639501,-178.93,0.000351,14]
[404798702,1770576639510,-167.02,0.000351,14]
[404798703,1770576639519,-603.64,0.000351,2]
[404798704,1770576639528,-332.91168728,0.00035551,2]
[404798705,1770576639538,-500.0,0.00035616,7]
[404798706,1770576639547,-343.3364925,0.00035616,7]
[404798707,1770576639556,-655.64818807,0.00035737,2]
[404798708,1770576639566,-767.72,0.00035984,2]
[404798709,1770576639575,-6943.4324567,0.00036017,7]
[404798710,1770576639584,-1991.81652551,0.00036265,2]
[404798711,1770576639593,-616.0,0.00036453,2]
[404798712,1770576639602,-3484.0,0.00036453,2]
[404798713,1770576639611,-1335.0,0.00036453,2]
[404798714,1770576639620,-1411.0,0.00036453,2]
[404798715,1770576639629,-917.0,0.00036453,2]
[404798716,1770576639639,-3255.0,0.00036453,2]
[404798717,1770576639648,-412.0,0.00036453,2]
[404798718,1770576639660,-789.53826779,0.00036555,2]
[404798719,1770576639673,-541.61193655,0.00036555,2]
[404798720,1770576639683,-332.91168728,0.00036563,2]
[404798721,1770576639694,-509.0,0.00036565,6]
[404798722,1770576639705,-1586.08228228,0.000366,2]
[404798723,1770576639727,-7296.03771772,0.000366,2]
[404798724,1770576639738,-150.0,0.00036649,2]
[404798726,1770576639749,-1000.0,0.00037217,2]
[404798727,1770576639759,-767.72,0.00037549,2]
[404798728,1770576639768,-332.91168728,0.00037576,2]
[404798729,1770576639778,-655.64818807,0.00037737,2]
[404798730,1770576639789,-300.0,0.00037808,2]
[404798731,1770576639799,-1331.15020434,0.00038072,2]
[404798732,1770576639808,-150.0,0.00038482,2]
[404798733,1770576639818,-332.91168728,0.00038589,2]
[404798734,1770576639828,-1991.81652551,0.00038896,2]
[404798735,1770576639839,-616.0,0.00039453,2]
[404798736,1770576639848,-3484.0,0.00039453,2]
[404798737,1770576639859,-1335.0,0.00039453,2]
[404798738,1770576639868,-917.0,0.00039453,2]
[404798739,1770576639877,-3255.0,0.00039453,2]
[404798740,1770576639888,-412.0,0.00039453,2]
[404798741,1770576639900,-1331.15020434,0.00039588,2]
[404798742,1770576639910,-360.8,0.0003959,2]
[404798743,1770576639919,-681.61838257,0.00039594,13]
[404798744,1770576639928,-332.91168728,0.00039602,2]
[404798745,1770576639939,-655.64818807,0.00039736,2]
[404798746,1770576639949,-500.0,0.00039773,5]
[404798747,1770576639959,-500.0,0.00039773,5]
[404798748,1770576639969,-500.0,0.00039773,5]
[404798749,1770576639979,-150.0,0.00039812,7]
[404798750,1770576639990,-150.0,0.00039812,7]
[404798751,1770576640001,-150.0,0.00039812,7]
[404798752,1770576640011,-150.0,0.00039812,7]
[404798754,1770576640022,-150.0,0.00039812,7]
[404798756,1770576640032,-150.0,0.00039812,7]
[404798757,1770576640043,-150.0,0.00039812,7]
[404798758,1770576640052,-152.06887484,0.00039812,7]
[404798759,1770576640061,-150.0,0.00039812,7]
[404798760,1770576640071,-221.6279223,0.00039812,7]
[404798761,1770576640080,-150.0,0.00039812,7]
[404798762,1770576640089,-150.0,0.00039812,7]
[404798763,1770576640098,-150.0,0.00039812,7]
[404798764,1770576640108,-162.30470815,0.00039812,7]
[404798765,1770576640118,-150.0,0.00039812,7]
[404798766,1770576640127,-1000.0,0.00039847,14]
[404798767,1770576640139,-150.0,0.00039918,7]
[404798768,1770576640148,-22499.99,0.0004,120]
[404798769,1770576640158,-22500.0,0.0004,120]
[404798770,1770576640167,-151.0,0.0004,120]
[404798771,1770576640178,-153.0,0.0004,120]
[404798772,1770576640187,-150.0,0.00040023,7]
[404798773,1770576640198,-150.0,0.00040034,7]
[404798774,1770576640207,-150.0,0.00040073,7]
[404798775,1770576640218,-150.0,0.00040073,7]
[404798776,1770576640227,-150.0,0.00040089,7]
[404798777,1770576640238,-1000.0,0.00040121,14]
[404798778,1770576640247,-150.0,0.00040128,7]
[404798779,1770576640256,-150.0,0.00040128,7]
[404798780,1770576640266,-150.0,0.00040181,7]
[404798781,1770576640275,-150.0,0.00040234,7]
[404798782,1770576640286,-150.0,0.00040255,7]
[404798783,1770576640295,-433.80361693,0.00040321,5]
[404798784,1770576640307,-587.12032473,0.00040321,5]
[404798785,1770576640324,-1006.85499541,0.00040321,5]
[404798786,1770576640334,-150.0,0.00040333,7]
[404798787,1770576640344,-150.0,0.00040333,7]
[404798788,1770576640354,-150.0,0.00040339,7]
[404798789,1770576640364,-150.0,0.00040365,7]
[404798790,1770576640374,-22500.0,0.00040375,120]
[404798791,1770576640384,-1499.0,0.00040395,14]
[404798792,1770576640394,-150.0,0.00040406,2]
[404798793,1770576640404,-150.0,0.00040444,7]
[404798794,1770576640413,-150.0,0.00040444,7]
[404798795,1770576640423,-150.0,0.00040476,7]
[404798796,1770576640432,-509.0,0.00040514,11]
[404798797,1770576640442,-150.0,0.0004055,7]
[404798798,1770576640452,-150.0,0.0004055,7]
[404798799,1770576640462,-150.0,0.00040593,7]
[404798800,1770576640471,-150.0,0.00040593,7]
[404798801,1770576640480,-332.91168728,0.00040615,2]
[404798802,1770576640489,-150.0,0.00040642,7]
[404798804,1770576640499,-150.0,0.00040655,7]
[404798805,1770576640508,-150.0,0.00040697,7]
[404798806,1770576640517,-20844.04,0.0004075,120]
[404798807,1770576640527,-150.0,0.0004076,7]
[404798808,1770576640536,-150.0,0.0004076,7]
[404798809,1770576640545,-151.0,0.000408,120]
[404798810,1770576640554,-2000.0,0.000408,2]
[404798811,1770576640563,-19972.0,0.000408,2]
[404798812,1770576640573,-150.0,0.00040853,7]
[404798813,1770576640582,-150.0,0.00040853,7]
[404798814,1770576640592,-150.0,0.00040866,7]
[404798815,1770576640601,-150.0,0.00040918,7]
[404798816,1770576640612,-150.0,0.00040918,7]
[404798817,1770576640621,-150.0,0.00040918,7]
[404798818,1770576640631,-150.0,0.00040918,7]
[404798819,1770576640640,-157.94,0.00040966,2]
[404798820,1770576640650,-150.0,0.00040971,7]
[404798821,1770576640662,-153.0,0.00041,120]
[404798822,1770576640671,-311.265144,0.00041068,22]
[404798823,1770576640680,-150.0,0.00041076,7]
[404798824,1770576640691,-150.0,0.00041076,7]
[404798825,1770576640701,-363.77058182,0.00041095,120]
[404798826,1770576640710,-1331.15020434,0.00041104,2]
[404798827,1770576640720,-150.0,0.00041113,30]
[404798828,1770576640730,-150.0,0.00041113,30]
[404798829,1770576640740,-150.0,0.00041139,30]
[404798830,1770576640749,-150.0,0.00041182,30]
[404798831,1770576640759,-150.0,0.00041195,30]
[404798832,1770576640769,-603.64,0.000412,30]
[404798833,1770576640778,-150.0,0.00041287,30]
[404798834,1770576640788,-150.0,0.00041287,30]
[404798835,1770576640799,-150.0,0.00041287,30]
[404798836,1770576640808,-1000.0,0.00041352,2]
[404798837,1770576640819,-150.0,0.00041361,30]
[404798838,1770576640829,-150.0,0.00041374,30]
[404798839,1770576640840,-150.0,0.00041374,30]
[404798840,1770576640850,-150.0,0.00041392,30]
[404798841,1770576640861,-150.0,0.00041392,30]
[404798842,1770576640871,-150.0,0.00041471,30]
[404798843,1770576640880,-150.0,0.00041498,30]
[404798844,1770576640889,-1991.81652551,0.00041528,28]
[404798845,1770576640899,-150.0,0.00041582,30]
[404798846,1770576640908,-151.0,0.000416,120]
[404798847,1770576640918,-150.0,0.00041603,30]
[404798848,1770576640928,-332.91168728,0.00041628,2]
[404798849,1770576640938,-150.0,0.00041634,30]
[404798850,1770576640947,-150.0,0.00041634,30]
[404798851,1770576640956,-150.0,0.00041656,30]
[404798852,1770576640967,-8882.12,0.000417,14]
[404798853,1770576640977,-150.0,0.00041708,30]
[404798854,1770576640987,-150.0,0.00041708,30]
[404798855,1770576640996,-655.64818807,0.00041736,15]
[404798856,1770576641007,-150.0,0.00041748,30]
[404798857,1770576641017,-800.0,0.000418,15]
[404798858,1770576641027,-800.0,0.000418,15]
[404798859,1770576641038,-800.0,0.000418,15]
[404798860,1770576641048,-800.0,0.000418,15]
[404798861,1770576641058,-800.0,0.000418,15]
[404798862,1770576641067,-829.56170862,0.000418,15]
[404798863,1770576641077,-150.0,0.00041803,30]
[404798864,1770576641086,-150.0,0.00041814,30]
[404798865,1770576641095,-150.0,0.00041894,30]
[404798866,1770576641104,-150.0,0.00041894,30]
[404798867,1770576641117,-150.0,0.00041919,30]
[404798868,1770576641128,-213.75126474,0.00042,2]
[404798869,1770576641138,-153.0,0.00042,120]
[404798870,1770576641148,-150.0,0.00042024,30]
[404798871,1770576641157,-150.0,0.00042024,30]
[404798872,1770576641167,-150.0,0.00042024,30]
[404798873,1770576641176,-150.0,0.00042024,30]
[404798874,1770576641186,-150.0,0.00042024,30]
[404798875,1770576641195,-150.0,0.00042024,30]